Cogmind - Beta 13 @@@ ROGUE MODE // 2024.04.03 @ 20:11:56 Player: Eusmilis Result: Destroyed by G-34 Mercenary with Small Laser Performance ------------- Evolutions (0) 0 Regions Visited (4) 800 Robots Destroyed (30) 150 Value Destroyed (608) 608 Prototype IDs (2) 40 Alien Tech Used (0) 0 Bonus (427) 427 TOTAL SCORE: 2025 Bonus ------- Follower Combat Kills 138 Aligned with FarCom 300 Friendly Fire -11 Cogmind --------- Core Integrity 0/250 Matter 245/300 Energy 125/125 System Corruption 3% Temperature Cool (64) Movement Walking (190) Ox1 Location -9/Mines Parts ------- > --- POWER (1) -------- Light Ion Engine > --- PROPULSION (2) --- Aluminum Leg Aluminum Leg > --- UTILITY (2) ------ Large Storage Unit Improved Terrain Scanner > --- WEAPON (2) ------- Small Laser Rocket Launcher (fused) > --- INVENTORY (15) --- Ion Engine Ion Engine Aluminum Leg Aluminum Leg Aluminum Leg Small Battery (100) Sensor Array Weapon Shielding Supersonic Drone Bay Small Laser Small Laser Beam Rifle Particle Gun Light Assault Rifle Light Assault Rifle Peak State ------------ > --- POWER ------------ Light Ion Engine > --- PROPULSION ------- Aluminum Leg Aluminum Leg > --- UTILITY ---------- Large Storage Unit Improved Terrain Scanner > --- WEAPON ----------- Particle Gun Rocket Launcher > --- INVENTORY -------- Ion Engine Light Ion Engine Aluminum Leg Aluminum Leg Small Battery Sensor Array Weapon Shielding Supersonic Drone Bay Small Laser Small Laser Small Laser Beam Rifle Light Assault Rifle Light Assault Rifle Grenade Launcher [Rating: 13] Favorites ----------- Power Light Ion Engine Engine Light Ion Engine Propulsion Aluminum Leg Leg Aluminum Leg Utility Improved Terrain Scanner Device Improved Terrain Scanner Storage Large Storage Unit Weapon Small Laser Energy Gun Small Laser Launcher Grenade Launcher Special Weapon Mining Laser Build | -11 -10 -10 -10 -9 ------- Run | Yrd Mat Min Exi Min Slots Evolved . | . . . . . Power . | . . . . . Propulsion . | . . . . . Utility . | . . . . . Weapon . | . . . . . Parts Attached 41 | 7 12 8 1 13 Power 6 | 1 1 3 . 1 Engine 6 | 1 1 3 . 1 Core . | . . . . . Reactor . | . . . . . Propulsion 10 | 2 4 1 . 3 Treads . | . . . . . Leg 10 | 2 4 1 . 3 Wheel . | . . . . . Hover . | . . . . . Flight . | . . . . . Utility 4 | 2 1 1 . . Device 2 | 1 . 1 . . Storage 2 | 1 1 . . . Processor . | . . . . . Hackware . | . . . . . Protection . | . . . . . Artifact . | . . . . . Weapon 21 | 2 6 3 1 9 Energy Gun 12 | 2 3 2 1 4 Energy Cannon . | . . . . . Ballistic Gun . | . . . . . Ballistic Cannon . | . . . . . Launcher 5 | . . 1 . 4 Special Weapon 4 | . 3 . . 1 Impact Weapon . | . . . . . Slashing Weapon . | . . . . . Piercing Weapon . | . . . . . Special Melee Weapon . | . . . . . Unidentified Prototypes . | . . . . . Parts Lost 3 | . . 1 . 2 Power . | . . . . . Propulsion . | . . . . . Utility 1 | . . 1 . . Weapon 2 | . . . . 2 Highest Loss Streak 1 | . . 1 . 1 To Critical Strikes . | . . . . . Average Slot Usage (%) 99 | . 99 97 100 98 Engine 14 | . 14 14 14 14 Leg 27 | . 27 28 28 28 Device 13 | . 14 12 14 14 Storage 14 | . 14 14 14 14 Energy Gun 22 | . 26 14 24 22 Launcher 4 | . . 13 3 4 Naked Turns . | . . . . . Heaviest Build 31 | 14 29 28 28 31 Greatest Support 20 | 20 20 20 20 20 Greatest Overweight (x) 1 | . 1 1 1 1 Average Overweight (x) . | . . 1 1 1 Largest Inventory Capacity 15 | 8 15 15 15 15 Average Capacity 13 | 7 10 15 15 15 Most Carried 15 | 2 13 14 15 15 Average Carried 12 | 1 6 12 13 14 Final Capacity 15 | 8 15 15 15 15 Final Carried 15 | 2 13 13 15 15 Class Distribution -------------------- 69% | Mutant 25% | Scavenger-Skirmisher 3% | Skirmisher Dominant Class ---------------- Mutant | -10/Materials Mutant | -10/Mines Mutant | -10/Exiles Scavenger-Skirmisher | -9/Mines Resources | -11 -10 -10 -10 -9 ----------- Run | Yrd Mat Min Exi Min Matter Collected 911 | 270 143 130 . 368 Remotely . | . . . . . Salvage Created 765 | 125 149 258 . 233 Parts 62 | 5 11 26 . 20 Haulers Intercepted . | . . . . . Recyclers Shooed 1 | . . 1 . . Parts Field Recycled . | . . . . . Retrieved Matter . | . . . . . Parts Self-Destructed . | . . . . . Prevented . | . . . . . Kills | -11 -10 -10 -10 -9 ------- Run | Yrd Mat Min Exi Min Combat Hostiles Destroyed 21 | . 7 7 . 7 Guns 12 | . 6 2 . 4 AOE 8 | . . 5 . 3 Classes Destroyed 9 | 2 3 1 . 3 Builder 2 | . . . . 2 Tunneler 5 | 2 . 2 . 1 Recycler 2 | 1 . 1 . . Watcher 1 | . 1 . . . Swarmer 9 | . 6 3 . . Grunt 8 | . 1 2 . 5 Duelist 1 | . . . . 1 Sentry 2 | . . 2 . . Assembled 1 | . . . . 1 Best Kill Streak 6 | 3 3 6 . 3 Combat Bots Only 5 | . 3 5 . 3 Max Kills in Single Turn 4 | 1 1 4 . 2 Gunslinging . | . . . . . Exploded 2 | . . 2 . 2 Melee . | . . . . . Uniques/NPCs Destroyed . | . . . . . Combat | -11 -10 -10 -10 -9 -------- Run | Yrd Mat Min Exi Min Hostile Shots Fired 120 | . 57 37 . 26 Missed 39 | . 17 13 . 9 Damage Taken 989 | . 328 317 . 344 Core 251 | . 45 98 . 108 Absorbed by Shields . | . . . . . Regen/Repaired (Parts) 65 | . 65 . . . Core Remaining (%) 100 | 100 . . . . Volleys Fired 74 | 8 29 11 . 26 Largest 2 | 2 2 2 . 2 Hottest 105 | 90 100 70 . 105 Shots Fired 122 | 16 44 17 . 45 Gun 86 | 16 30 11 . 29 Cannon . | . . . . . Launcher 22 | . . 6 . 16 Special 14 | . 14 . . . Kinetic . | . . . . . Thermal 100 | 16 44 11 . 29 Explosive 22 | . . 6 . 16 Electromagnetic . | . . . . . Robot Hit Streak 5 | 3 5 3 . 5 Robot Miss Streak 4 | 4 3 2 . 2 Penetration Max . | . . . . . Secondary Targets 1 | . 1 . . . Max Gunslinging Chain 1 | . 1 . . . Shots Hit Robots 41 | 8 15 5 . 13 Core Hits 46 | 4 8 17 . 17 Critical Kills . | . . . . . Critical Parts Destroyed . | . . . . . Critical Strikes 4 | 2 2 . . . Burn 4 | 2 2 . . . Melee Attacks . | . . . . . Impact . | . . . . . Slashing . | . . . . . Piercing . | . . . . . Sneak Attacks . | . . . . . Combat Hostiles . | . . . . . Follow-up Attacks . | . . . . . Damage Inflicted 1479 | 91 198 497 . 693 Guns 437 | 91 198 33 . 115 Cannons . | . . . . . Explosions 1042 | . . 464 . 578 Melee . | . . . . . Ramming . | . . . . . Kinetic . | . . . . . Thermal 437 | 91 198 33 . 115 Explosive 1042 | . . 464 . 578 Electromagnetic . | . . . . . Impact . | . . . . . Slashing . | . . . . . Piercing . | . . . . . Highest Corruption 3 | . 3 3 3 3 Average Corruption 2 | . 2 3 3 3 Corruption Purged . | . . . . . Corruption Blocked . | . . . . . Effects 70 | . 8 11 25 26 Message Errors 13 | . . 3 5 5 Matter Fused 17 | . 4 2 4 7 Heat Flow Errors 7 | . 1 1 2 3 Energy Discharges 12 | . 1 2 7 2 Parts Rejected 1 | . . 1 . . Parts Fused 1 | . . . . 1 Data Loss (minor) 13 | . 1 2 5 5 Data Loss (major) 3 | . . . 2 1 Misfires 2 | . . . . 2 Alerts 1 | . 1 . . . Overload Shots . | . . . . . Overflow Damage 8 | . . 4 . 4 Projectiles . | . . . . . Explosions 8 | . . 4 . 4 Melee . | . . . . . Knockbacks . | . . . . . Impact . | . . . . . Kinetic . | . . . . . Secondary . | . . . . . Self-Inflicted Damage 45 | . . . . 45 Shots 3 | . . . . 3 Rammed . | . . . . . Targets Rammed . | . . . . . Kicked . | . . . . . Crushed . | . . . . . Highest Temperature 270 | 180 150 216 188 270 Average Temperature 57 | 77 57 52 88 46 Received Heat Transfer 231 | . 18 138 . 75 Siege Activations . | . . . . . Robots Corrupted . | . . . . . Combat Hostiles . | . . . . . Parts Fried . | . . . . . Impact Corruptions . | . . . . . Robots Melted 1 | . 1 . . . Combat Hostiles 1 | . 1 . . . Parts Melted 5 | 1 4 . . . Heat Transferred 1414 | 396 693 75 . 250 Parts Sabotaged . | . . . . . Parts Stolen . | . . . . . Parts Stripped . | . . . . . Power Chain Reactions . | . . . . . Alert | -11 -10 -10 -10 -9 ------- Run | Yrd Mat Min Exi Min Peak Influence 235 | 15 176 235 . 160 Initial 9 | . 9 9 . . Average 85 | 5 66 159 . 76 Maximum Alert Level 1 | . . 1 . . Low Security (%) 94 | 100 100 67 . 100 Level 1 5 | . . 32 . . Level 2 . | . . . . . Level 3 . | . . . . . Level 4 . | . . . . . Level 5 . | . . . . . High Security . | . . . . . Max Security . | . . . . . Squads Dispatched . | . . . . . Investigation . | . . . . . Extermination . | . . . . . Reinforcement . | . . . . . Assault . | . . . . . Garrison . | . . . . . Intercept . | . . . . . Searches Triggered . | . . . . . Construction Impeded . | . . . . . Haulers Reinforced . | . . . . . Active Scanning Responses . | . . . . . Cargo Convoy Interrupts . | . . . . . Stealth | -11 -10 -10 -10 -9 --------- Run | Yrd Mat Min Exi Min Distress Signals 6 | . 2 . . 4 Communications Jammed . | . . . . . Distress Signals . | . . . . . Times Spotted 29 | . 10 7 . 12 Peak Tracking Total 3 | . 3 2 . 3 Tactical Retreats . | . . . . . Traps | -11 -10 -10 -10 -9 ------- Run | Yrd Mat Min Exi Min Traps Triggered 2 | . 2 . . . Indirectly . | . . . . . Trap Hack Attempts . | . . . . . Triggered . | . . . . . Disarmed . | . . . . . Reprogrammed . | . . . . . Reused . | . . . . . Traps Extracted . | . . . . . Installed . | . . . . . Triggered . | . . . . . Machines | -11 -10 -10 -10 -9 ---------- Run | Yrd Mat Min Exi Min Machines Disabled 1 | . 1 . . . Max in Single Turn 1 | . 1 . . . Machines Repaired . | . . . . . Machines Dismantled . | . . . . . Machines Sabotaged . | . . . . . Overloaded Fab Kills . | . . . . . Hacking | -11 -10 -10 -10 -9 --------- Run | Yrd Mat Min Exi Min Machines Accessed 7 | . 7 . . . Terminals 6 | . 6 . . . Fabricators . | . . . . . Repair Stations 1 | . 1 . . . Recycling Units . | . . . . . Scanalyzers . | . . . . . Garrison Access . | . . . . . Total Hacks 16 | . 16 . . . Successful 11 | . 11 . . . Failed 5 | . 5 . . . Catastrophic 2 | . 2 . . . Database Lockouts . | . . . . . Manual 1 | . . . 1 . Terminals 10 | . 10 . . . Fabricators . | . . . . . Repair Stations 6 | . 6 . . . Recycling Units . | . . . . . Scanalyzers . | . . . . . Garrison Access . | . . . . . Terminal Hacks 6 | . 6 . . . Prototype ID Bank 1 | . 1 . . . Branch Access Points 1 | . 1 . . . Emergency Access Points 1 | . 1 . . . Dispatch Records 1 | . 1 . . . Hauler Manifests 1 | . 1 . . . Zone Layout 1 | . 1 . . . Fabricator Hacks . | . . . . . Repair Station Hacks 5 | . 5 . . . Scan Component 3 | . 3 . . . Repair 2 | . 2 . . . Recycling Unit Hacks . | . . . . . Scanalyzer . | . . . . . Garrison Access Hacks . | . . . . . Unauthorized Hacks . | . . . . . Terminals . | . . . . . Fabricators . | . . . . . Repair Stations . | . . . . . Recycling Units . | . . . . . Scanalyzers . | . . . . . Garrison Access . | . . . . . Data Cores Recovered . | . . . . . Used . | . . . . . Hacking Detections 6 | . 6 . . . Full Trace Events . | . . . . . Feedback Events . | . . . . . Feedback Blocked . | . . . . . Robot Schematics Acquired . | . . . . . Robots Built . | . . . . . Authchips . | . . . . . Time . | . . . . . Total Robot Build Rating . | . . . . . Part Schematics Acquired . | . . . . . Parts Built . | . . . . . Authchips . | . . . . . Time . | . . . . . Total Part Build Rating . | . . . . . Parts Repaired 2 | . 2 . . . Time 52 | . 52 . . . Parts Recycled . | . . . . . Recycled Matter . | . . . . . Retrieved Matter . | . . . . . Retrieved Components . | . . . . . Parts Scanalyzed . | . . . . . Part Schematics Acquired . | . . . . . Parts Damaged . | . . . . . Bothacking | -11 -10 -10 -10 -9 ------------ Run | Yrd Mat Min Exi Min Used RIF Installer . | . . . . . Robots Hacked . | . . . . . Non-combat . | . . . . . Combat . | . . . . . Robot Hacks Applied . | . . . . . Relay Couplers Released . | . . . . . Fabnet Peak Effective % . | . . . . . Robots Rewired . | . . . . . Allies Hacked . | . . . . . Hacks Repelled . | . . . . . Allies | -11 -10 -10 -10 -9 -------- Run | Yrd Mat Min Exi Min Total Allies 3 | . . . . 3 Largest Group 3 | . . . . 3 Highest-Rated Group 40 | . . . . 40 Highest-Rated Ally 16 | . . . . 16 Total Orders . | . . . . . Ally Attacks 24 | . . . . 24 Total Damage 251 | . . . . 251 Kills 8 | . . . . 8 Allies Corrupted . | . . . . . Allies Melted . | . . . . . Intel | -11 -10 -10 -10 -9 ------- Run | Yrd Mat Min Exi Min Robot Analysis Total . | . . . . . Derelict Logs Recovered 1 | . . 1 . . Drone Launches . | . . . . . Drone Recoveries . | . . . . . Exploration | -11 -10 -10 -10 -9 ------------- Run | Yrd Mat Min Exi Min Turns Passed 3608 | 89 816 440 1156 1107 Spaces Moved 1708 | 47 449 208 606 398 Core 5 | 5 . . . . Treads . | . . . . . Legs 1703 | 42 449 208 606 398 Wheels . | . . . . . Hover . | . . . . . Flight . | . . . . . Fastest Speed 50 | 50 120 190 190 190 Average Speed 174 | 112 140 190 190 190 Slowest Speed 190 | 120 190 190 190 190 Overloaded Moves . | . . . . . Propulsion Burnouts . | . . . . . Robots Hopped . | . . . . . Cave-ins Triggered . | . . . . . Exploration Rate (%) 42 | 4 47 32 93 38 Regions Visited 4 Branch Regions 3 Pre-discovered Areas . | . . . . . Known Exits Taken 2 | . 1 . 1 . Unknown Exits Taken 2 | 1 . 1 . . Scrap Searched . | . . . . . Spaces Dug 17 | . 7 . . 10 Terrain Destroyed 211 | . 7 64 . 140 Melee . | . . . . . Projectile 7 | . 7 . . . AOE 204 | . . 64 . 140 Terrain Rammed . | . . . . . Walls Destroyed . | . . . . . Machines Disabled . | . . . . . Actions | -11 -10 -10 -10 -9 --------- Run | Yrd Mat Min Exi Min Total 2190 | 64 571 235 612 708 Wait 327 | . 71 . . 256 Move 1704 | 46 448 207 605 398 Hop . | . . . . . Pick Up 26 | 3 9 4 4 6 Fast Attach 10 | 6 2 1 . 1 Attach 5 | 1 1 1 . 2 Detach . | . . . . . Swap 26 | . 9 6 1 10 Drop 18 | . 2 5 2 9 Fire 74 | 8 29 11 . 26 Melee . | . . . . . Ram . | . . . . . Kick . | . . . . . Crush . | . . . . . Escape Stasis . | . . . . . Rewire . | . . . . . Trap . | . . . . . Miscellaneous . | . . . . . Route ------- -11/Scrapyard -10/Materials (discovered 3 exits: [*Mat] / *Min x2) -10/Mines -10/Exiles (discovered 2 exits: *Min x2) -9/Mines History --------- Turn | Location | Event 4 | -11/Scrapyard | Discovered new exit (range 14) 90 | -11/Scrapyard | Entered Materials 215 | -10/Materials | Discovered new exit (range 8) 251 | -10/Materials | Identified exit to Mines 317 | -10/Materials | Build established: Mutant 630 | -10/Materials | Repaired Aluminum Leg 657 | -10/Materials | Repaired Aluminum Leg 696 | -10/Materials | Discovered new exit (range 3) 906 | -10/Materials | Entered Mines 928 | -10/Mines | Core integrity fell below 50% 1338 | -10/Mines | Deemed a non-threat by the Exiles lab entrance 1338 | -10/Mines | Discovered new exit (range 5) 1346 | -10/Mines | Entered Exiles 1347 | -10/Exiles | Identified exit to Mines 1438 | -10/Exiles | Met 8R-AWN 1470 | -10/Exiles | Met EX-HEX 1584 | -10/Exiles | Met EX-DEC 1612 | -10/Exiles | Visited The Gauntlet 2108 | -10/Exiles | Met EX-BIN 2135 | -10/Exiles | Aligned with FarCom system 2137 | -10/Exiles | Given EX-Vault access code 2237 | -10/Exiles | Opened EX-Vault 2254 | -10/Exiles | Found Prototype Device 2299 | -10/Exiles | Warned to stay clear of 0b10 Research branches 2502 | -10/Exiles | Left Exiles lab with Supersonic Drone Bay 2502 | -10/Exiles | Entered Mines 2510 | -9/Mines | Assisted by bots powering up and referring to "LRC-V3" 2648 | -9/Mines | Received a Rocket Launcher from a helpful Derelict 2882 | -9/Mines | Build established: Scavenger-Skirmisher 3066 | -9/Mines | Core integrity fell below 20% 3155 | -9/Mines | Excavation squad dispatched 3155 | -9/Mines | A large section of the Mines collapsed 3405 | -9/Mines | Excavation squad dispatched 3609 | -9/Mines | Destroyed by G-34 Mercenary with Small Laser Last Messages --------------- The unstable cave ceiling collapses. Acquired 2 matter. System corrupted: Heat flow error (+155). ALERT: Derelict activity in mines confirmed. Dispatching additional escorted excavation squad. System corrupted: Rocket Launcher fused. The unstable cave ceiling collapses. System corrupted: Matter fused (-5). The unstable cave ceiling collapses. Acquired 5 matter. Acquired 66 matter. ,1Q3F7EDX=|QENDGPWVCFRKW76O< The unstable cave ceiling collapses. System corrupted: Component data lost. CK8=JV/V,5D0